bitfinex/quotes_BTCUSD_20241117
["timestamp","ask_amount","ask_price","bid_price","bid_amount"]
[1731848447710,0.219613,91069.0,91060.0,0.109817]
[1731848448149,0.219616,91068.0,91056.0,0.1115356]
[1731848448373,0.109812,91064.0,91056.0,0.0017146]
[1731848448617,0.219611,91070.0,91058.0,0.109819]
[1731848449053,0.109812,91065.0,91058.0,0.109819]
[1731848449266,0.109812,91065.0,91059.0,0.109818]
[1731848449475,0.16470033,91071.0,91056.0,0.0017146]
[1731848449476,0.219616,91068.0,91056.0,0.0017146]
[1731848449682,0.109813,91064.0,91056.0,0.1115366]
[1731848449858,0.109813,91064.0,91057.0,0.10982]
[1731848450155,0.109813,91064.0,91058.0,0.109819]
[1731848450370,0.109814,91063.0,91056.0,0.1115356]
[1731848451006,0.109814,91063.0,91057.0,0.09803441]
[1731848451243,0.16470033,91071.0,91057.0,0.09803441]
[1731848451244,0.219623,91065.0,91057.0,0.09803441]
[1731848451421,0.219625,91064.0,91056.0,0.0017146]
[1731848451666,0.109821,91057.0,91056.0,0.0017146]
[1731848451878,0.0782,91068.0,91056.0,0.0017146]
[1731848452563,0.109817,91061.0,91057.0,0.00184091]
[1731848452771,0.109816,91062.0,91057.0,0.00184091]
[1731848452973,0.21962,91066.0,91057.0,0.00184091]
[1731848452974,0.109818,91060.0,91057.0,0.00184091]
[1731848453182,0.21962,91066.0,91057.0,0.00184091]
[1731848453384,0.0782,91068.0,91057.0,0.00184091]
[1731848453597,0.21962,91066.0,91056.0,0.1115356]
[1731848453848,0.109816,91062.0,91058.0,0.00183934]
[1731848454057,0.109816,91062.0,91057.0,0.00183777]
[1731848454266,0.109816,91062.0,91059.0,0.00182834]
[1731848454678,0.109816,91062.0,91056.0,0.0017146]
[1731848454892,0.16470033,91071.0,91056.0,0.0017146]
[1731848454893,0.219599,91075.0,91060.0,0.00182676]
[1731848455113,0.0822,91077.0,91057.0,0.21964]
[1731848455114,0.109806,91070.0,91063.0,0.109813]
[1731848455346,0.16470033,91073.0,91064.0,0.109812]
[1731848455841,0.109806,91070.0,91065.0,0.00184133]
[1731848456059,0.109807,91069.0,91065.0,0.00184133]
[1731848456278,0.109807,91069.0,91063.0,0.109812]
[1731848456495,0.109802,91073.0,91066.0,0.10981]
[1731848456716,0.109804,91071.0,91064.0,0.11167067]
[1731848456955,0.109804,91071.0,91067.0,0.00186024]
[1731848457170,0.109804,91071.0,91068.0,0.00185552]
[1731848457856,0.12771744,91077.0,91057.0,0.267341]
[1731848457857,0.12771744,91077.0,91069.0,0.00185395]
[1731848457858,0.219599,91075.0,91069.0,0.00185395]
[1731848458096,0.109805,91070.0,91069.0,0.00185395]
[1731848458336,0.109803,91072.0,91060.0,0.219635]
[1731848458566,0.0822,91077.0,91060.0,0.219635]
[1731848458806,0.109805,91071.0,91064.0,0.109812]
[1731848459041,0.219601,91074.0,91062.0,0.109814]
[1731848459271,0.109807,91069.0,91065.0,0.00186024]
[1731848459486,0.109808,91068.0,91063.0,0.0018681]
[1731848459686,0.109808,91068.0,91066.0,0.00185552]
[1731848459903,0.109806,91070.0,91060.0,0.219633]
[1731848460137,0.109807,91069.0,91062.0,0.109814]
[1731848460331,0.109807,91069.0,91063.0,0.109814]
[1731848460625,0.109808,91068.0,91063.0,0.00186024]
[1731848461062,0.0830565,91077.0,91062.0,0.21963]
[1731848461283,0.16470033,91074.0,91069.0,0.109806]
[1731848461737,0.0830565,91077.0,91070.0,0.00186596]
[1731848462141,0.109804,91071.0,91070.0,0.00186596]
[1731848462387,0.109804,91071.0,91064.0,0.109812]
[1731848463533,0.219599,91075.0,91065.0,0.00186024]
[1731848463760,0.219604,91073.0,91063.0,0.109813]
[1731848463991,0.109806,91070.0,91066.0,0.00186495]
[1731848464261,0.109806,91070.0,91064.0,0.00186495]
[1731848464502,0.109806,91070.0,91067.0,0.00185552]
[1731848464698,0.109806,91070.0,91062.0,0.109814]
[1731848464959,0.109806,91070.0,91068.0,0.00185395]
[1731848465195,0.219601,91074.0,91059.0,0.219637]
[1731848465476,0.109805,91070.0,91069.0,0.00185238]
[1731848465724,0.219599,91075.0,91063.0,0.109813]
[1731848465941,0.219599,91075.0,91069.0,0.00185238]
[1731848466167,0.0830565,91077.0,91058.0,0.001713]
[1731848466168,0.109806,91070.0,91059.0,0.329455]
[1731848466426,0.109806,91069.0,91063.0,0.109813]
[1731848466640,0.109809,91068.0,91059.0,0.109818]
[1731848466863,0.0830565,91077.0,91061.0,0.109815]
[1731848467086,0.16470033,91074.0,91058.0,0.001713]
[1731848467307,0.10981,91066.0,91059.0,0.109818]
[1731848467523,0.16470033,91074.0,91060.0,0.109817]
[1731848467738,0.219608,91071.0,91058.0,0.001713]
[1731848467955,0.16470033,91074.0,91058.0,0.001713]
[1731848468415,0.109802,91073.0,91058.0,0.001713]
[1731848468628,0.219621,91066.0,91058.0,0.001713]
[1731848468846,0.17496736,91074.0,91058.0,0.001713]
[1731848469072,0.109817,91061.0,91058.0,0.001713]
[1731848469546,0.219627,91064.0,91058.0,0.001713]
[1731848469547,0.109815,91062.0,91058.0,0.001713]
[1731848469976,0.109817,91061.0,91058.0,0.001713]
[1731848470434,0.219629,91063.0,91058.0,0.001713]
[1731848470676,0.109817,91061.0,91058.0,0.001713]
[1731848472582,0.109814,91063.0,91058.0,0.001713]
[1731848473063,0.109815,91062.0,91058.0,0.001713]
[1731848473305,0.109812,91064.0,91058.0,0.001713]
[1731848473513,0.219623,91065.0,91058.0,0.001713]
[1731848473725,0.109815,91063.0,91058.0,0.001713]
[1731848473949,0.109818,91059.0,91058.0,0.001713]
[1731848475376,0.219628,91063.0,91058.0,0.001713]
[1731848475591,0.109818,91059.0,91058.0,0.001713]
[1731848476583,0.12010285,91059.0,91058.0,0.001713]
[1731848479976,0.01028485,91059.0,91058.0,0.001713]
[1731848480190,0.219606,91072.0,91060.0,0.109817]
[1731848480419,0.219606,91072.0,91058.0,0.001713]
[1731848480420,0.10981,91067.0,91058.0,0.001713]
[1731848480661,0.01027948,91066.0,91061.0,0.109816]
[1731848480916,0.01027948,91066.0,91062.0,0.109815]
[1731848481145,0.01027948,91065.0,91058.0,0.001713]
[1731848481362,0.01027948,91065.0,91062.0,0.109814]
[1731848481595,0.01027948,91064.0,91060.0,0.219635]
[1731848481858,0.01027948,91063.0,91059.0,0.219637]
[1731848482073,0.17497992,91073.0,91059.0,0.10906255]
[1731848482302,0.01027959,91072.0,91071.0,0.109803]
[1731848483182,0.01027959,91072.0,91068.0,0.109807]
[1731848483407,0.109809,91067.0,91060.0,0.109817]
[1731848483627,0.16470033,91074.0,91059.0,0.0477]
[1731848483854,0.0102788,91073.0,91059.0,0.0477]
[1731848484078,0.0102788,91072.0,91060.0,0.16470033]
[1731848484327,0.02169212,91091.0,91070.0,0.0795]
[1731848484592,0.01027858,91083.0,91082.0,0.109791]
[1731848485048,0.2204123,91093.0,91071.0,0.10906255]
[1731848485265,0.109783,91089.0,91082.0,0.10979]
[1731848485479,0.01027363,91088.0,91082.0,0.10979]
[1731848485708,0.01027363,91087.0,91082.0,0.10979]
[1731848485923,0.01027363,91086.0,91079.0,0.109794]
[1731848486140,0.01027363,91085.0,91079.0,0.109794]
[1731848486357,0.109783,91089.0,91081.0,0.109791]
[1731848486573,0.0102713,91088.0,91081.0,0.109791]
[1731848486789,0.0102713,91087.0,91078.0,0.109795]
[1731848487008,0.0102713,91086.0,91073.0,0.10906255]
[1731848487244,0.1106384,91090.0,91078.0,0.21959]
[1731848487455,0.01026928,91089.0,91082.0,0.10979]
[1731848487678,0.1106384,91090.0,91070.0,0.299111]
[1731848487679,0.16470033,91083.0,91072.0,0.219606]
[1731848487899,0.0818,91084.0,91063.0,0.09806309]
[1731848488126,0.01026966,91083.0,91073.0,0.16470033]
[1731848488399,0.0818,91084.0,91067.0,0.219618]
[1731848488617,0.01026942,91083.0,91067.0,0.219618]
[1731848488868,0.01026942,91082.0,91067.0,0.219618]
[1731848489092,0.01026883,91083.0,91073.0,0.219603]
[1731848489313,0.16470033,91083.0,91064.0,0.0477]
[1731848489536,0.16470033,91083.0,91065.0,0.16470033]
[1731848489772,0.16470033,91083.0,91066.0,0.21962]
[1731848489989,0.16470033,91083.0,91065.0,0.16470033]
[1731848489990,0.22984987,91082.0,91065.0,0.219623]
[1731848490211,0.109795,91079.0,91066.0,0.10981]
[1731848490402,0.109795,91079.0,91065.0,0.219623]
[1731848490403,0.109795,91079.0,91070.0,0.109804]
[1731848490656,0.1092411,91079.0,91070.0,0.109804]
[1731848490888,0.01026762,91082.0,91068.0,0.109808]
[1731848491135,0.16470033,91083.0,91075.0,0.109798]
[1731848491357,0.16470033,91083.0,91063.0,0.09806309]
[1731848491824,0.109791,91082.0,91073.0,0.109801]
[1731848492038,0.109791,91082.0,91074.0,0.109799]
[1731848492288,0.109791,91082.0,91066.0,0.21962]
[1731848492505,0.109791,91082.0,91064.0,0.31768809]
[1731848492735,0.0008564,91090.0,91083.0,0.109789]
[1731848492961,0.16470033,91084.0,91083.0,0.109789]
[1731848493189,0.0008564,91090.0,91073.0,0.0472]
[1731848493416,0.16470033,91098.0,91074.0,0.1112583]
[1731848493899,0.219587,91080.0,91071.0,0.09806309]
[1731848494119,0.046,91091.0,91056.0,0.1318146]
[1731848494120,0.109782,91089.0,91080.0,0.109793]
[1731848494350,0.16470033,91088.0,91076.0,0.109797]
[1731848494797,0.109789,91084.0,91076.0,0.109797]
[1731848495261,0.219573,91086.0,91073.0,0.219604]
[1731848495479,0.109789,91084.0,91075.0,0.109799]
[1731848495704,0.109796,91078.0,91065.0,0.219623]
[1731848496007,0.109796,91078.0,91063.0,0.219628]
[1731848496008,0.109795,91079.0,91069.0,0.109806]
[1731848496109,0.10979,91083.0,91073.0,0.109801]
[1731848496315,0.0826,91080.0,91071.0,0.109803]
[1731848496550,0.0826,91080.0,91067.0,0.219616]
[1731848496756,0.0826,91080.0,91072.0,0.109802]
[1731848497380,0.0826,91080.0,91068.0,0.219616]
[1731848497607,0.0826,91080.0,91071.0,0.109803]
[1731848497813,0.0826,91080.0,91064.0,0.09983062]
[1731848498020,0.0826,91080.0,91072.0,0.109802]
[1731848498238,0.192393,91080.0,91066.0,0.21962]
[1731848498435,0.0066,91080.0,91067.0,0.219618]
[1731848498684,0.0066,91080.0,91066.0,0.21962]
[1731848498685,0.0066,91080.0,91072.0,0.109802]
[1731848498924,0.109796,91078.0,91067.0,0.109809]
[1731848499149,0.109796,91078.0,91064.0,0.0017126]
[1731848499150,0.0066,91080.0,91064.0,0.0017126]
[1731848499616,0.109804,91071.0,91064.0,0.0017126]
[1731848500100,0.109808,91068.0,91064.0,0.0017126]
[1731848500341,0.046,91079.0,91064.0,0.0017126]
[1731848500342,0.109805,91071.0,91064.0,0.0017126]
[1731848500580,0.219591,91078.0,91064.0,0.0017126]
[1731848501029,0.109802,91073.0,91064.0,0.1115246]
[1731848501259,0.219591,91078.0,91064.0,0.0017126]
[1731848501476,0.046,91079.0,91065.0,0.109811]
[1731848501477,0.109797,91077.0,91065.0,0.109811]
[1731848501717,0.109799,91075.0,91066.0,0.10981]
[1731848502189,0.219594,91077.0,91065.0,0.109811]
[1731848502434,0.109801,91074.0,91065.0,0.109811]
[1731848502673,0.219596,91076.0,91065.0,0.109811]
[1731848502912,0.1098,91075.0,91066.0,0.10981]
[1731848504017,0.109804,91072.0,91064.0,0.1115246]
[1731848504471,0.109803,91072.0,91064.0,0.0017126]
[1731848504685,0.109808,91068.0,91064.0,0.0017126]
[1731848504921,0.046,91079.0,91064.0,0.0017126]
[1731848504922,0.109806,91070.0,91064.0,0.0017126]
[1731848505153,0.219596,91076.0,91064.0,0.0017126]
[1731848505365,0.109809,91067.0,91064.0,0.0017126]
[1731848505577,0.109811,91065.0,91064.0,0.0017126]
[1731848506747,0.19151,91066.0,91064.0,0.0017126]
[1731848506976,0.0817,91066.0,91064.0,0.0017126]
[1731848507201,0.109811,91065.0,91064.0,0.0017126]
[1731848510739,0.110211,91065.0,91064.0,0.0017126]
[1731848512567,0.158411,91065.0,91064.0,0.0017126]
[1731848513409,0.082411,91065.0,91064.0,0.0017126]
[1731848513625,0.158411,91065.0,91064.0,0.0017126]
[1731848520607,0.110211,91065.0,91064.0,0.0017126]
[1731848522397,0.0004,91065.0,91064.0,0.0017126]
[1731848526662,0.0004,91065.0,91064.0,0.1115246]
[1731848526873,0.0004,91065.0,91064.0,0.0017126]
[1731848527478,0.109803,91072.0,91064.0,0.1115246]
[1731848527913,0.109804,91071.0,91064.0,0.1115246]
[1731848528532,0.02175105,91073.0,91064.0,0.1115246]
[1731848528956,0.109804,91071.0,91064.0,0.1115246]
[1731848529375,0.02175105,91073.0,91064.0,0.0017126]
[1731848529592,0.02175105,91073.0,91065.0,0.109811]
[1731848529798,0.02175105,91073.0,91066.0,0.109809]
[1731848530230,0.109798,91076.0,91067.0,0.109809]
[1731848530437,0.219593,91078.0,91064.0,0.2213366]
[1731848530649,0.109797,91077.0,91064.0,0.0017126]
[1731848530863,0.109797,91077.0,91064.0,0.1115246]
[1731848531068,0.109803,91072.0,91064.0,0.1115246]
[1731848531284,0.109802,91073.0,91065.0,0.10981]
[1731848531712,0.219594,91077.0,91067.0,0.109808]
[1731848531921,0.109795,91078.0,91064.0,0.1115246]
[1731848532132,0.219594,91077.0,91064.0,0.1115246]
[1731848532353,0.109803,91072.0,91064.0,0.0017126]
[1731848532565,0.219596,91076.0,91064.0,0.0017126]
[1731848533014,0.219596,91076.0,91066.0,0.10981]
[1731848533015,0.109801,91074.0,91066.0,0.10981]
[1731848533248,0.219591,91078.0,91064.0,0.0017126]
[1731848533455,0.109803,91072.0,91065.0,0.109811]
[1731848534164,0.219594,91077.0,91064.0,0.2213366]
[1731848534377,0.0785,91079.0,91064.0,0.0017126]
[1731848534378,0.219604,91073.0,91064.0,0.0017126]
[1731848534597,0.0785,91079.0,91064.0,0.0017126]
[1731848534598,0.0008565,91075.0,91064.0,0.0017126]
[1731848534810,0.219601,91074.0,91064.0,0.0017126]
[1731848535017,0.109806,91070.0,91064.0,0.0017126]
[1731848535890,0.219606,91072.0,91064.0,0.0017126]
[1731848536099,0.109807,91069.0,91064.0,0.0017126]
[1731848536521,0.329409,91072.0,91064.0,0.0017126]
[1731848536754,0.109803,91072.0,91064.0,0.1115246]
[1731848537407,0.109804,91071.0,91064.0,0.1115246]
[1731848538094,0.109802,91073.0,91064.0,0.0017126]
[1731848538302,0.109803,91072.0,91065.0,0.109811]
[1731848538739,0.109803,91072.0,91064.0,0.0017126]
[1731848538951,0.109803,91072.0,91064.0,0.0013126]
[1731848539159,0.109801,91074.0,91066.0,0.109809]
[1731848539400,0.109803,91072.0,91064.0,0.1111246]
[1731848539817,0.109806,91070.0,91064.0,0.0013126]
[1731848540021,0.0008565,91075.0,91064.0,0.0013126]
[1731848540239,0.0008565,91075.0,91067.0,0.109808]
[1731848540446,0.0008565,91075.0,91065.0,0.109811]
[1731848540723,0.109802,91073.0,91065.0,0.109811]
[1731848540949,0.109803,91072.0,91065.0,0.109811]
[1731848541181,0.0008565,91075.0,91069.0,0.109806]
[1731848541404,0.0008565,91075.0,91074.0,0.1098]
[1731848542278,0.0008565,91075.0,91074.0,0.09833754]
[1731848542498,0.0008565,91075.0,91074.0,0.1098]
[1731848542708,0.0008565,91075.0,91074.0,0.20816319]
[1731848542913,0.0008565,91075.0,91072.0,0.219604]
[1731848542914,0.0008565,91075.0,91072.0,0.09836319]
[1731848543134,0.0008565,91075.0,91074.0,0.1098]
[1731848543361,0.09041323,91084.0,91072.0,0.31796719]
[1731848543597,0.109787,91085.0,91077.0,0.109797]
[1731848543817,0.109789,91084.0,91075.0,0.109799]
[1731848544038,0.20157611,91087.0,91074.0,0.219601]
[1731848544496,0.109789,91084.0,91076.0,0.109798]
[1731848544959,0.16470033,91087.0,91072.0,0.219604]
[1731848545179,0.109791,91082.0,91074.0,0.109799]
[1731848545400,0.109793,91081.0,91071.0,0.09836319]
[1731848545622,0.109793,91081.0,91073.0,0.109801]
[1731848546123,0.16470033,91087.0,91070.0,0.31797319]
[1731848546345,0.109788,91085.0,91075.0,0.109798]
[1731848546566,0.16470033,91087.0,91072.0,0.09835428]
[1731848546767,0.109788,91085.0,91076.0,0.109797]
[1731848546985,0.109788,91085.0,91074.0,0.219601]
[1731848547230,0.109788,91085.0,91076.0,0.109798]
[1731848547876,0.219566,91089.0,91076.0,0.109798]
[1731848547877,0.109789,91084.0,91076.0,0.109798]
[1731848548084,0.0008565,91081.0,91076.0,0.109798]
[1731848548524,0.0008565,91081.0,91071.0,0.09835428]
[1731848548745,0.0008565,91081.0,91070.0,0.09835428]
[1731848548951,0.0008565,91081.0,91076.0,0.109798]
[1731848550036,0.0008565,91081.0,91072.0,0.219606]
[1731848550037,0.0008565,91081.0,91080.0,0.109793]
[1731848554431,0.219559,91092.0,91078.0,0.219591]
[1731848554631,0.219559,91092.0,91077.0,0.126]
[1731848554632,0.219559,91092.0,91077.0,0.345594]
[1731848554876,0.219559,91092.0,91073.0,0.09832347]
[1731848554877,0.16470033,91087.0,91073.0,0.09832347]
[1731848555084,0.10906255,91091.0,91065.0,0.46543069]
[1731848555085,0.10906255,91091.0,91069.0,0.09832347]
[1731848555231,0.109797,91077.0,91072.0,0.16470033]
[1731848555437,0.10906255,91091.0,91066.0,0.09832347]
[1731848555438,0.16470033,91088.0,91066.0,0.09832347]
[1731848555644,0.109801,91074.0,91069.0,0.16470033]
[1731848555978,0.109798,91076.0,91069.0,0.16470033]
[1731848556162,0.219588,91080.0,91064.0,0.2963356]
[1731848556397,0.109798,91076.0,91067.0,0.109808]
[1731848556588,0.109798,91076.0,91068.0,0.109807]
[1731848557448,0.109798,91076.0,91065.0,0.09832347]
[1731848557449,0.109802,91073.0,91065.0,0.09832347]
[1731848557711,0.109799,91075.0,91064.0,0.17503607]
[1731848557915,0.21959,91079.0,91065.0,0.219623]
[1731848558143,0.16470033,91078.0,91064.0,0.0767126]
[1731848558382,0.16470033,91078.0,91064.0,0.17503607]
[1731848558383,0.219594,91077.0,91064.0,0.17503607]
[1731848558599,0.109802,91073.0,91064.0,0.0767126]
[1731848558813,0.16470033,91078.0,91064.0,0.0767126]
[1731848559020,0.109801,91074.0,91064.0,0.0767126]
[1731848559229,0.219596,91076.0,91064.0,0.0767126]
[1731848559441,0.16470033,91078.0,91064.0,0.0767126]
[1731848559669,0.1098,91075.0,91065.0,0.10981]
[1731848559889,0.16470033,91078.0,91064.0,0.0767126]
[1731848560141,0.109811,91065.0,91064.0,0.0013126]
[1731848566015,0.15692908,91065.0,91064.0,0.0013126]
[1731848566266,0.14665984,91065.0,91064.0,0.0013126]
[1731848567626,0.219625,91064.0,91045.0,0.219671]
[1731848567847,0.01026924,91063.0,91053.0,0.16470033]
[1731848568096,0.21963,91062.0,91048.0,0.109832]
[1731848568316,0.329452,91060.0,91043.0,0.0017148]
[1731848568537,0.16470033,91064.0,91044.0,0.16470033]
[1731848568789,0.16922717,91063.0,91044.0,0.16470033]
[1731848569034,0.109834,91046.0,91045.0,0.00239431]
[1731848569259,0.109837,91044.0,91043.0,0.0017148]
[1731848569717,0.12010162,91044.0,91043.0,0.0017148]
[1731848570440,0.109837,91044.0,91043.0,0.0017148]
[1731848571346,0.188637,91044.0,91043.0,0.0017148]
[1731848571578,0.29769955,91044.0,91043.0,0.0017148]
[1731848572940,0.3358713,91044.0,91043.0,0.0017148]
[1731848573374,0.2598713,91044.0,91043.0,0.0017148]
[1731848573611,0.3358713,91044.0,91043.0,0.0017148]
[1731848574040,0.2733343,91044.0,91016.0,0.1]
[1731848574285,0.109862,91023.0,91022.0,0.16470033]
[1731848574742,0.109866,91020.0,91011.0,0.0811]
[1731848574956,0.109866,91020.0,91011.0,0.190976]
[1731848575411,0.219721,91025.0,91011.0,0.0811]
[1731848575643,0.16470033,91022.0,91014.0,0.109872]
[1731848575853,0.109865,91021.0,91014.0,0.109872]
[1731848576437,0.16470033,91024.0,91009.0,0.0380593]
[1731848576534,0.219727,91022.0,91011.0,0.109876]
[1731848576777,0.219724,91023.0,91011.0,0.109876]
[1731848577205,0.109867,91019.0,91011.0,0.109876]
[1731848577424,0.109867,91019.0,91009.0,0.219756]
[1731848577425,0.16470033,91024.0,91006.0,0.1]
[1731848577657,0.109869,91018.0,91010.0,0.109877]
[1731848577864,0.219729,91021.0,91007.0,0.219763]
[1731848578090,0.219729,91021.0,91009.0,0.109878]
[1731848578595,0.109871,91016.0,91010.0,0.109877]
[1731848579512,0.219736,91018.0,91007.0,0.219763]
[1731848579513,0.109872,91015.0,91009.0,0.109878]
[1731848580192,0.02235138,91017.0,91006.0,0.1]
[1731848580400,0.02235138,91017.0,91005.0,0.0827]
[1731848580625,0.109872,91015.0,91009.0,0.109878]
[1731848580885,0.16470033,91024.0,91009.0,0.10906255]
[1731848581119,0.16470033,91023.0,91011.0,0.0827]
[1731848581328,0.16470033,91023.0,91022.0,0.109863]
[1731848581799,0.109851,91033.0,91012.0,0.10906255]
[1731848582027,0.109851,91033.0,91027.0,0.109857]
[1731848582259,0.109852,91032.0,91021.0,0.219728]
[1731848582469,0.10985,91033.0,91026.0,0.109857]
[1731848582687,0.02193604,91031.0,91026.0,0.109857]
[1731848583552,0.02193604,91031.0,91027.0,0.109856]
[1731848584035,0.02193604,91031.0,91021.0,0.219728]
[1731848584254,0.02193604,91031.0,91023.0,0.219724]
[1731848584462,0.02193604,91031.0,91026.0,0.109858]
[1731848584882,0.02193604,91031.0,91027.0,0.109857]
[1731848585089,0.219695,91035.0,91024.0,0.219722]
[1731848585090,0.109848,91035.0,91028.0,0.109855]
[1731848585327,0.109849,91034.0,91029.0,0.109855]
[1731848585764,0.109849,91034.0,91027.0,0.109856]
[1731848585987,0.10984,91042.0,91029.0,0.16470033]
[1731848586198,0.001714,91031.0,91027.0,0.0756]
[1731848586417,0.001714,91031.0,91030.0,0.109853]
[1731848587555,0.001714,91031.0,91028.0,0.109855]
[1731848587785,0.001714,91031.0,91020.0,0.0756]
[1731848588265,0.001714,91031.0,91030.0,0.109853]
[1731848588488,0.109847,91036.0,91030.0,0.109853]
[1731848588705,0.16470033,91038.0,91019.0,0.1]
[1731848588916,0.01024146,91047.0,91020.0,0.18685948]
[1731848589133,0.16470033,91039.0,91038.0,0.109844]
[1731848589349,0.01024146,91051.0,91038.0,0.0756]
[1731848589563,0.268946,91056.0,91046.0,0.109833]
[1731848589564,0.109826,91053.0,91046.0,0.109833]
[1731848589781,0.109826,91053.0,91047.0,0.109832]
[1731848589991,0.109826,91053.0,91047.0,0.11167335]
[1731848590205,0.01024146,91055.0,91047.0,0.11167335]
[1731848590206,0.109828,91052.0,91047.0,0.00184135]
[1731848590628,0.109828,91052.0,91041.0,0.219681]
[1731848590629,0.01024146,91055.0,91041.0,0.219681]
[1731848590840,0.109818,91060.0,91053.0,0.109825]
[1731848591044,0.22424179,91064.0,91051.0,0.109828]
[1731848591253,0.22424179,91064.0,91040.0,0.219683]
[1731848591254,0.10982,91058.0,91054.0,0.00185038]
[1731848591457,0.10982,91058.0,91053.0,0.109825]
[1731848591670,0.10982,91058.0,91054.0,0.00183958]
[1731848591950,0.10982,91058.0,91047.0,0.219666]
[1731848591951,0.10982,91058.0,91052.0,0.109827]
[1731848592375,0.219635,91060.0,91053.0,0.00184372]
[1731848592587,0.21963,91062.0,91053.0,0.00184372]
[1731848592800,0.109822,91056.0,91051.0,0.109827]
[1731848593013,0.109822,91056.0,91054.0,0.00184844]
[1731848593215,0.109822,91056.0,91037.0,0.21969]
[1731848593433,0.109822,91056.0,91055.0,0.00183743]
[1731848593666,0.10983,91050.0,91043.0,0.109837]
[1731848593882,0.21400033,91064.0,91044.0,0.0018453]
[1731848593883,0.109833,91047.0,91044.0,0.0018453]
[1731848594105,0.109828,91052.0,91044.0,0.109836]
[1731848594331,0.21963,91062.0,91046.0,0.219667]
[1731848594567,0.10906255,91063.0,91048.0,0.109832]
[1731848594568,0.109823,91056.0,91048.0,0.109832]
[1731848594803,0.219635,91060.0,91049.0,0.10983]
[1731848595070,0.109823,91056.0,91049.0,0.11165835]
[1731848595280,0.109824,91054.0,91049.0,0.00182835]
[1731848595497,0.219635,91060.0,91047.0,0.109832]
[1731848595719,0.10982,91058.0,91050.0,0.109829]
[1731848595938,0.11931232,91063.0,91047.0,0.219664]
[1731848596190,0.109824,91055.0,91047.0,0.109832]
[1731848596397,0.109826,91053.0,91048.0,0.00184093]
[1731848596618,0.10983,91049.0,91048.0,0.00184093]
[1731848596885,0.109837,91044.0,91038.0,0.109843]
[1731848597099,0.109838,91044.0,91039.0,0.00208594]
[1731848597338,0.219659,91050.0,91038.0,0.109843]
[1731848597564,0.16470033,91049.0,91040.0,0.00208415]
[1731848597789,0.219664,91048.0,91039.0,0.00183464]
[1731848598004,0.16470033,91049.0,91032.0,0.0773]
[1731848598253,0.109838,91043.0,91040.0,0.00182992]
[1731848598475,0.219666,91047.0,91033.0,0.2197]
[1731848598738,0.219666,91047.0,91038.0,0.109843]
[1731848598945,0.16470033,91049.0,91032.0,0.0773]
[1731848598946,0.219669,91046.0,91034.0,0.00183778]
[1731848599156,0.109841,91041.0,91039.0,0.00182992]
[1731848599371,0.219671,91045.0,91032.0,0.0773]
[1731848599641,0.109839,91042.0,91033.0,0.109849]
[1731848599857,0.219676,91044.0,91033.0,0.00183621]
[1731848600073,0.16470033,91049.0,91026.0,0.1141825]
[1731848600074,0.10906255,91048.0,91026.0,0.0773]
[1731848600287,0.10906255,91048.0,91028.0,0.109855]
[1731848600288,0.109847,91036.0,91028.0,0.109855]
[1731848600524,0.21968,91042.0,91032.0,0.109851]
[1731848600754,0.109843,91039.0,91032.0,0.109851]
[1731848600989,0.109845,91037.0,91033.0,0.00183797]
[1731848601475,0.109845,91037.0,91029.0,0.109855]
[1731848601689,0.109845,91037.0,91034.0,0.00184051]
[1731848601905,0.109852,91031.0,91030.0,0.00183482]
[1731848602153,0.219702,91032.0,91017.0,0.297038]
[1731848602372,0.0461,91034.0,91017.0,0.297038]
[1731848602373,0.219705,91031.0,91018.0,0.219736]
[1731848602613,0.219705,91031.0,91017.0,0.297038]
[1731848602853,0.219707,91030.0,91019.0,0.109866]
[1731848603324,0.109857,91027.0,91017.0,0.0773]
[1731848603536,0.219702,91032.0,91022.0,0.109862]
[1731848603770,0.27605804,91034.0,91020.0,0.109865]
[1731848603771,0.109856,91029.0,91020.0,0.109865]
[1731848603984,0.109856,91028.0,91021.0,0.109864]
[1731848604207,0.109856,91028.0,91021.0,0.10905838]
[1731848604435,0.109856,91028.0,91022.0,0.00185211]
[1731848604680,0.0461,91034.0,91023.0,0.219724]
[1731848604896,0.0461,91034.0,91022.0,0.00185211]
[1731848604897,0.16470033,91036.0,91022.0,0.00185211]
[1731848605125,0.16470033,91036.0,91023.0,0.22162657]
[1731848605339,0.109848,91035.0,91028.0,0.109855]
[1731848605570,0.109845,91037.0,91029.0,0.109855]
[1731848605782,0.109845,91037.0,91029.0,0.11173714]
[1731848606077,0.109847,91036.0,91029.0,0.00188214]
[1731848606553,0.109844,91038.0,91030.0,0.00188214]
[1731848606785,0.109845,91037.0,91030.0,0.00188214]
[1731848607016,0.16470033,91039.0,91030.0,0.109852]
[1731848607246,0.219681,91041.0,91031.0,0.00188214]
[1731848607463,0.219681,91041.0,91030.0,0.109852]
[1731848607691,0.0461,91043.0,91021.0,0.16470033]
[1731848608121,0.0461,91043.0,91022.0,0.00190574]
[1731848608353,0.0461,91043.0,91031.0,0.109851]
[1731848608588,0.0461,91043.0,91023.0,0.54931]
[1731848608812,0.109832,91048.0,91039.0,0.109842]
[1731848609029,0.109832,91048.0,91024.0,0.12729695]
[1731848609030,0.16470033,91049.0,91024.0,0.12700259]
[1731848609244,0.16470033,91049.0,91043.0,0.109838]
[1731848609469,0.16470033,91049.0,91042.0,0.109838]
[1731848609689,0.16470033,91049.0,91044.0,0.00185336]
[1731848609933,0.109831,91049.0,91040.0,0.10984]
[1731848610173,0.109831,91049.0,91035.0,0.219695]
[1731848610174,0.109831,91049.0,91045.0,0.00185605]
[1731848610396,0.109831,91049.0,91041.0,0.10984]
[1731848610614,0.109833,91047.0,91046.0,0.00186333]
[1731848610837,0.219661,91049.0,91035.0,0.109847]
[1731848611295,0.109837,91044.0,91036.0,0.11171309]
[1731848611526,0.219675,91044.0,91036.0,0.00186709]
[1731848611742,0.0461,91050.0,91036.0,0.00186709]
[1731848611743,0.109841,91041.0,91036.0,0.00186709]
[1731848611949,0.219676,91043.0,91033.0,0.109849]